bitfinex/quotes_BTCUSD_20251208
["timestamp","ask_amount","ask_price","bid_price","bid_amount"]
[1765216504632,0.0004,90130.0,90129.0,1.1713034]
[1765216504860,0.0004,90130.0,90129.0,1.1743034]
[1765216505581,0.0004,90130.0,90129.0,1.1753034]
[1765216506018,0.0004,90150.0,90139.0,0.38552299]
[1765216506222,0.0004,90150.0,90139.0,2.4774124]
[1765216506764,0.00225483,90140.0,90139.0,2.4774124]
[1765216507316,0.00225483,90140.0,90139.0,1.6446494]
[1765216508139,0.00225483,90140.0,90139.0,1.6356494]
[1765216508583,0.00225483,90140.0,90139.0,1.6426494]
[1765216508981,0.00225483,90140.0,90139.0,1.86452894]
[1765216509523,0.00325483,90140.0,90139.0,1.86452894]
[1765216511449,0.00325483,90140.0,90139.0,1.91450701]
[1765216512450,0.01108942,90176.0,90173.0,0.23288537]
[1765216512796,0.01168881,90176.0,90173.0,0.23288537]
[1765216513117,0.01168881,90176.0,90173.0,0.01108979]
[1765216513318,0.01108979,90173.0,90167.0,0.01109053]
[1765216513454,0.01108979,90173.0,90163.0,0.2218181]
[1765216513455,0.2329016,90167.0,90163.0,0.23290912]
[1765216514318,0.2329016,90167.0,90156.0,0.02537188]
[1765216514319,0.01109127,90161.0,90156.0,0.02537188]
[1765216514485,0.02279538,90167.0,90162.0,0.01109114]
[1765216514703,0.00059939,90167.0,90165.0,0.2218151]
[1765216515926,0.01819939,90166.0,90139.0,0.00101348]
[1765216516126,0.02219599,90156.0,90140.0,0.04997807]
[1765216516321,0.00059939,90164.0,90147.0,0.01109299]
[1765216516322,0.01109225,90153.0,90147.0,0.01109299]
[1765216516547,0.0176,90157.0,90140.0,0.01210733]
[1765216516548,0.2218377,90156.0,90140.0,0.01210733]
[1765216516672,0.01109262,90150.0,90143.0,0.01109348]
[1765216516875,0.01109311,90146.0,90143.0,0.01109348]
[1765216517081,0.23294075,90152.0,90148.0,0.22185674]
[1765216517286,0.23294284,90151.0,90147.0,0.22185776]
[1765216517491,0.22185596,90149.0,90141.0,0.01109373]
[1765216517723,0.22186568,90145.0,90141.0,0.22187433]
[1765216517919,0.22186568,90145.0,90140.0,0.01109385]
[1765216517920,0.01109336,90144.0,90140.0,0.01109385]
[1765216518355,0.22188462,90137.0,90135.0,0.01109446]
[1765216518608,0.01109434,90136.0,90133.0,0.01109471]
[1765216518929,0.01109434,90136.0,90133.0,0.01428]
[1765216519142,0.01109434,90136.0,90129.0,0.22190377]
[1765216519143,0.23299319,90132.0,90129.0,0.22190377]
[1765216519309,0.23298647,90134.0,90130.0,0.22190099]
[1765216519513,0.02219599,90138.0,90126.0,0.22191033]
[1765216519514,0.2218715,90143.0,90137.0,0.01109422]
[1765216519734,0.01109385,90140.0,90135.0,0.01109446]
[1765216519952,0.2329721,90140.0,90136.0,0.01109434]
[1765216520242,0.22188005,90139.0,90136.0,0.23298085]
[1765216520470,0.22188708,90136.0,90133.0,0.01109471]
[1765216520762,0.2329721,90140.0,90137.0,0.22188444]
[1765216521246,0.221882,90138.0,90136.0,0.01109434]
[1765216521419,0.0110941,90138.0,90132.0,0.01109483]
[1765216521626,0.01109336,90144.0,90134.0,0.01109459]
[1765216521821,0.003,90140.0,90138.0,0.0110941]
[1765216522021,0.0176,90139.0,90138.0,0.2218818]
[1765216522224,0.02869397,90139.0,90136.0,0.01109434]
[1765216522445,0.22188201,90138.0,90136.0,0.01109434]
[1765216522593,0.002,90138.0,90136.0,0.22288448]
[1765216522798,0.002,90138.0,90136.0,0.22188448]
[1765216523005,0.0176,90139.0,90138.0,0.221882]
[1765216523253,0.0176,90139.0,90138.0,0.222882]
[1765216523468,0.0196,90139.0,90138.0,0.221882]
[1765216523659,0.0196,90139.0,90137.0,0.22188446]
[1765216523865,0.0196,90139.0,90138.0,0.242492]
[1765216524017,0.002,90139.0,90138.0,0.242492]
[1765216524446,0.02869348,90143.0,90138.0,0.242492]
[1765216524447,0.0176,90143.0,90141.0,0.22187267]
[1765216525692,0.0206,90143.0,90140.0,0.01109385]
[1765216525885,0.0216,90143.0,90141.0,0.22187413]
[1765216526321,0.0216,90143.0,90142.0,0.22187215]
[1765216527482,0.003,90143.0,90142.0,0.22187215]
[1765216527633,0.001,90143.0,90142.0,0.22187215]
[1765216528039,0.004,90143.0,90142.0,0.22187215]
[1765216528438,0.001,90143.0,90142.0,0.22187215]
[1765216528806,0.004,90143.0,90142.0,0.22187215]
[1765216530434,0.004,90143.0,90137.0,0.22188361]
[1765216530435,0.01509348,90143.0,90137.0,0.22188361]
[1765216530642,0.04196659,90143.0,90108.0,0.01428]
[1765216530940,0.04196659,90143.0,90127.0,0.2219088]
[1765216530941,0.23299677,90130.0,90127.0,0.2219088]
[1765216531170,0.01109545,90127.0,90119.0,0.01109643]
[1765216531376,0.23301752,90122.0,90119.0,0.22192802]
[1765216531745,0.02219599,90124.0,90122.0,0.22192136]
[1765216531954,0.22193136,90118.0,90116.0,0.0110968]
[1765216532071,0.01109693,90115.0,90110.0,0.01109754]
[1765216532278,0.0110973,90112.0,90109.0,0.01109767]
[1765216532476,0.01109668,90117.0,90111.0,0.01109742]
[1765216532674,0.01109668,90117.0,90109.0,0.23304956]
[1765216532675,0.01109717,90113.0,90109.0,0.01109767]
[1765216532934,0.01109705,90114.0,90108.0,0.22195485]
[1765216533093,0.02219599,90113.0,90106.0,0.01109804]
[1765216533293,0.22194602,90112.0,90108.0,0.22195425]
[1765216533498,0.22194871,90111.0,90108.0,0.22195425]
[1765216533747,0.01109742,90111.0,90108.0,0.23305204]
[1765216534044,0.25063608,90115.0,90111.0,0.002]
[1765216534197,0.25063608,90115.0,90111.0,0.01309742]
[1765216534383,0.01109705,90114.0,90111.0,0.01309742]
[1765216534596,0.0176,90115.0,90112.0,0.0110973]
[1765216535638,0.23953961,90115.0,90112.0,0.23304173]
[1765216535970,0.0196,90115.0,90113.0,0.22194237]
[1765216536395,0.0196,90115.0,90114.0,0.24255109]
[1765216536592,0.002,90115.0,90114.0,0.24356457]
[1765216536800,0.002,90115.0,90114.0,0.27455457]
[1765216537000,0.002,90115.0,90114.0,0.24356457]
[1765216537198,0.01109545,90127.0,90124.0,0.22191508]
[1765216537404,0.01109545,90127.0,90123.0,0.01109594]
[1765216537709,0.23300484,90127.0,90124.0,0.22191633]
[1765216537908,0.06,90125.0,90124.0,0.22191633]
[1765216538803,0.06,90125.0,90124.0,0.27452981]
[1765216539182,0.063,90125.0,90124.0,0.27452981]
[1765216539381,0.064,90125.0,90124.0,0.24353981]
[1765216539588,0.063,90125.0,90124.0,0.24353981]
[1765216540000,0.063,90125.0,90124.0,0.24453981]
[1765216540304,0.01109508,90130.0,90128.0,0.22190602]
[1765216540502,0.01169447,90130.0,90125.0,0.0110957]
[1765216540683,0.00059939,90130.0,90128.0,0.2219062]
[1765216540885,0.00059939,90130.0,90129.0,0.22190415]
[1765216541287,0.00359939,90130.0,90129.0,0.22190415]
[1765216542025,0.00059939,90130.0,90129.0,0.22190415]
[1765216542357,0.00359939,90130.0,90129.0,0.22190415]
[1765216542904,0.00359939,90130.0,90128.0,0.2219062]
[1765216543101,0.0110952,90129.0,90123.0,0.23301262]
[1765216543486,0.23300483,90127.0,90124.0,0.01109582]
[1765216543633,0.23300483,90127.0,90125.0,0.22191398]
[1765216543816,0.23359875,90129.0,90125.0,0.23300968]
[1765216544426,0.23359875,90129.0,90127.0,0.22190844]
[1765216544626,0.00059939,90129.0,90127.0,0.22190844]
[1765216544826,0.00059939,90129.0,90128.0,0.22190662]
[1765216545637,0.00059939,90129.0,90127.0,0.22190844]
[1765216545837,0.06059939,90129.0,90127.0,0.22190844]
[1765216546245,0.06059939,90129.0,90128.0,0.22190662]
[1765216546450,0.00059939,90129.0,90128.0,0.22190662]
[1765216546650,0.00359939,90129.0,90128.0,0.24007662]
[1765216546849,0.00359939,90129.0,90128.0,0.26980662]
[1765216547121,0.00059939,90129.0,90128.0,0.26980662]
[1765216547453,0.00359939,90129.0,90128.0,0.26980662]
[1765216547845,0.003,90129.0,90128.0,0.26980662]
[1765216550614,0.003,90129.0,90128.0,0.2708201]
[1765216551059,0.003,90129.0,90128.0,0.29297603]
[1765216551258,0.003,90129.0,90128.0,0.2708201]
[1765216551470,0.003,90129.0,90128.0,0.29297603]
[1765216552200,0.003,90129.0,90128.0,0.29697603]
[1765216552397,0.003,90129.0,90128.0,0.2748201]
[1765216552685,0.23296085,90144.0,90141.0,0.22187313]
[1765216552886,0.01109397,90139.0,90134.0,0.01109459]
[1765216553045,0.01109373,90141.0,90138.0,0.0110941]
[1765216553227,0.23296967,90141.0,90139.0,0.22187897]
[1765216553574,0.23356557,90142.0,90139.0,0.22187897]
[1765216554239,0.002,90141.0,90139.0,0.22187897]
[1765216554585,0.002,90141.0,90140.0,0.22187708]
[1765216554754,0.002,90141.0,90140.0,0.24006708]
[1765216555195,0.002,90141.0,90140.0,0.26724708]
[1765216555573,0.002,90141.0,90140.0,0.26826056]
[1765216555778,0.002,90141.0,90140.0,0.29041649]
[1765216556177,0.00023922,90148.0,90147.0,0.22185985]
[1765216556398,0.00023922,90148.0,90147.0,0.25419985]
[1765216557241,0.00223922,90148.0,90147.0,0.25521333]
[1765216557450,0.00223922,90148.0,90147.0,0.30454926]
[1765216558014,0.00223922,90148.0,90147.0,0.30554926]
[1765216558349,0.00223922,90148.0,90147.0,0.28339333]
[1765216559343,0.00223922,90148.0,90147.0,0.30554926]
[1765216559538,0.00223922,90148.0,90147.0,0.28339333]
[1765216560557,0.00223922,90148.0,90147.0,0.91109926]
[1765216561789,0.00223922,90148.0,90147.0,0.91009926]
[1765216562201,0.00023922,90148.0,90147.0,0.91709926]
[1765216562560,0.00023922,90148.0,90147.0,0.91809926]
[1765216562957,0.00023922,90148.0,90147.0,0.94678917]
[1765216564685,0.00023922,90148.0,90147.0,1.00931216]
[1765216565284,0.00023922,90148.0,90147.0,1.02691216]
[1765216571997,0.00023922,90148.0,90147.0,1.34991216]
[1765216572197,0.0004,90180.0,90147.0,1.34991216]
[1765216572393,0.0004,90180.0,90179.0,0.25259112]
[1765216572594,0.0004,90180.0,90177.0,0.0110893]
[1765216572761,0.00099939,90180.0,90178.0,0.22178142]
[1765216572966,0.00195593,90180.0,90179.0,0.22178112]
[1765216573359,0.00195593,90180.0,90178.0,0.22178142]
[1765216573567,0.00099939,90180.0,90179.0,0.22178112]
[1765216574403,0.00499939,90180.0,90179.0,0.22178112]
[1765216574849,0.00099939,90180.0,90179.0,0.23872112]
[1765216575166,0.00299939,90180.0,90179.0,0.23872112]
[1765216575513,0.00299939,90180.0,90179.0,0.24072112]
[1765216575714,0.00299939,90180.0,90179.0,0.22378112]
[1765216577172,0.00299939,90180.0,90179.0,0.26769112]
[1765216577372,0.0024,90180.0,90179.0,0.26769112]
[1765216578155,0.0024,90180.0,90179.0,0.2687046]
[1765216578701,0.0024,90180.0,90179.0,0.001831]
[1765216578702,0.22417866,90180.0,90179.0,0.001831]
[1765216578925,0.01109139,90160.0,90150.0,0.01109262]
[1765216579126,0.02869151,90159.0,90151.0,0.01387]
[1765216579301,0.02869151,90159.0,90150.0,0.64497094]
[1765216579302,0.011092,90155.0,90150.0,0.63387832]
[1765216579499,0.01109274,90149.0,90144.0,0.01109336]
[1765216579701,0.01109274,90149.0,90130.0,0.04718708]
[1765216579702,0.01109422,90137.0,90131.0,0.03328488]
[1765216579907,0.01109483,90132.0,90125.0,0.0110957]
[1765216580101,0.01109483,90132.0,90125.0,0.23300916]
[1765216580102,0.0110952,90129.0,90125.0,0.23300916]
[1765216580282,0.00059939,90129.0,90125.0,0.0110957]
[1765216580492,0.00059939,90129.0,90127.0,0.22190791]
[1765216580697,0.22190727,90128.0,90125.0,0.0110957]
[1765216580925,0.01109533,90128.0,90124.0,0.01109582]
[1765216581125,0.01109533,90128.0,90125.0,0.001]
[1765216581323,0.01109533,90128.0,90125.0,0.0120957]
[1765216581504,0.23300249,90128.0,90125.0,0.23300916]
[1765216581710,0.23300249,90128.0,90121.0,0.01387]
[1765216581711,0.01109582,90124.0,90121.0,0.01387]
[1765216581915,0.01109545,90127.0,90122.0,0.01109606]
[1765216582120,0.0110957,90125.0,90122.0,0.01109606]
[1765216582319,0.01109582,90124.0,90121.0,0.01387]
[1765216582761,0.01109557,90126.0,90123.0,0.01109594]
[1765216582930,0.01109545,90127.0,90122.0,0.01109606]
[1765216583134,0.01109545,90127.0,90123.0,0.01109594]
[1765216583135,0.01109557,90126.0,90123.0,0.01109594]
[1765216583476,0.01109557,90126.0,90123.0,0.23301487]
[1765216583679,0.23300565,90127.0,90124.0,0.01109582]
[1765216583680,0.01109545,90127.0,90124.0,0.01109582]
[1765216583882,0.23300781,90126.0,90123.0,0.23301299]
[1765216584292,0.00059939,90129.0,90124.0,0.23301101]
[1765216584617,0.002,90124.0,90122.0,0.23301686]
[1765216584973,0.22191268,90126.0,90123.0,0.22191846]
[1765216585177,0.22189918,90132.0,90123.0,0.22191846]
[1765216585178,0.01109385,90140.0,90137.0,0.01109422]
[1765216585377,0.06352298,90170.0,90123.0,0.00101348]
[1765216585378,0.323,90158.0,90123.0,0.00101348]
[1765216585584,0.22186231,90146.0,90123.0,0.00101348]
[1765216585763,0.22190733,90128.0,90123.0,0.00101348]
[1765216585965,0.01033521,90145.0,90123.0,0.00101348]
[1765216585966,0.01109471,90133.0,90128.0,0.01109533]
[1765216586192,0.22190167,90131.0,90127.0,0.22190807]
[1765216586365,0.22189631,90133.0,90127.0,0.01109545]
[1765216586585,0.23299269,90132.0,90127.0,0.01109545]
[1765216586905,0.23299269,90132.0,90128.0,0.01109533]
[1765216587282,0.23299509,90131.0,90128.0,0.01109533]
[1765216587488,0.23299509,90131.0,90128.0,0.23300116]
[1765216587687,0.23299509,90131.0,90127.0,0.01109545]
[1765216587688,0.2329975,90130.0,90127.0,0.01109545]
[1765216587896,0.2329975,90130.0,90127.0,0.23300391]
[1765216588111,0.2329975,90130.0,90127.0,0.01109545]
[1765216588308,0.22191542,90125.0,90123.0,0.00101348]
[1765216588676,0.01109557,90126.0,90123.0,0.00101348]
[1765216588878,0.221914,90125.0,90123.0,0.00101348]
[1765216589089,0.01109631,90120.0,90111.0,0.22194845]
[1765216589294,0.01109705,90114.0,90111.0,0.22194686]
[1765216589501,0.01109705,90114.0,90111.0,0.01109742]
[1765216589710,0.01109668,90117.0,90112.0,0.0110973]
[1765216589917,0.22188852,90136.0,90124.0,0.22191647]
[1765216590123,0.01109496,90131.0,90127.0,0.01109545]
[1765216590377,0.0176,90134.0,90133.0,0.22189431]
[1765216590723,0.01109483,90132.0,90128.0,0.01109533]
[1765216590990,0.23299734,90130.0,90125.0,0.2330073]
[1765216591140,0.23300584,90127.0,90123.0,0.01109594]
[1765216591482,0.23300804,90126.0,90123.0,0.01109594]
[1765216591682,0.001,90125.0,90124.0,0.01109582]
[1765216591902,0.001,90125.0,90124.0,0.26099409]
[1765216592109,0.001,90125.0,90124.0,0.27793409]
[1765216592243,0.001,90125.0,90124.0,0.30009002]
[1765216592946,0.33273461,90162.0,90124.0,0.30009002]
[1765216592947,0.04997807,90177.0,90145.0,0.01109323]
[1765216593155,0.05009465,90151.0,90150.0,0.01387]
[1765216593386,0.05009465,90151.0,90145.0,0.01109323]
[1765216593387,0.05009465,90151.0,90148.0,0.01109286]
[1765216593588,0.05009465,90151.0,90149.0,0.22185492]
[1765216593790,0.00011658,90151.0,90150.0,0.23879246]
[1765216593965,0.00011658,90151.0,90150.0,0.26576246]
[1765216594221,0.00011658,90151.0,90150.0,0.26677594]
[1765216594425,0.00011658,90151.0,90150.0,0.28893187]
[1765216594635,0.00011658,90151.0,90150.0,0.26677594]
[1765216594968,0.00411658,90151.0,90150.0,0.26677594]
[1765216595312,0.00411658,90151.0,90150.0,0.28893187]
[1765216595537,0.00411658,90151.0,90150.0,0.26677594]
[1765216596072,0.00011658,90151.0,90150.0,0.26677594]
[1765216597061,0.00111658,90151.0,90150.0,0.26677594]
[1765216598352,0.00111658,90151.0,90150.0,0.81406187]
[1765216599066,0.00011658,90151.0,90150.0,0.81406187]
[1765216599421,0.00011658,90151.0,90150.0,0.81050594]
[1765216599593,0.00011658,90151.0,90150.0,0.81250594]
[1765216599792,0.00011658,90151.0,90150.0,0.81150594]
[1765216600091,0.00011658,90151.0,90150.0,0.83166187]
[1765216600348,0.00011658,90151.0,90150.0,0.84275166]
[1765216601879,0.00011658,90151.0,90150.0,0.84475166]
[1765216602303,0.00011658,90151.0,90150.0,0.84375166]
[1765216602535,0.00011658,90151.0,90150.0,0.84475166]
[1765216602737,0.0004,90180.0,90155.0,1.79434515]
[1765216602887,0.0004,90180.0,90155.0,1.44132156]
[1765216604285,0.0004,90180.0,90155.0,1.41916563]
[1765216604488,0.0004,90180.0,90179.0,0.59740053]
[1765216604892,0.0004,90180.0,90179.0,0.62540053]
[1765216606230,0.0004,90180.0,90179.0,0.6032446]
[1765216606796,0.0004,90180.0,90179.0,0.66576759]
[1765216606964,0.0004,90180.0,90179.0,0.62540053]
[1765216607949,0.0004,90180.0,90179.0,0.5752446]
[1765216608501,0.0014,90180.0,90179.0,0.5583046]
[1765216608701,0.0014,90180.0,90179.0,0.5457946]
[1765216608856,0.0004,90180.0,90179.0,0.22178112]
[1765216609057,0.0004,90180.0,90173.0,0.33408758]
[1765216609058,0.01108942,90176.0,90173.0,0.33408758]
[1765216609224,0.00059939,90176.0,90175.0,0.323]
[1765216609424,0.00059939,90176.0,90175.0,0.54479096]
[1765216609852,0.00059939,90176.0,90175.0,0.56173096]
[1765216610054,0.00211737,90180.0,90179.0,0.22178112]
[1765216610279,0.00211737,90180.0,90179.0,0.2395446]
[1765216610510,0.0132063,90180.0,90177.0,0.0110893]
[1765216610726,0.00211737,90180.0,90179.0,0.23853112]
[1765216610866,0.0014,90180.0,90179.0,0.23853112]
[1765216611066,0.0004,90180.0,90179.0,0.26357112]
[1765216611489,0.0004,90180.0,90179.0,0.5875846]
[1765216612056,0.0004,90180.0,90179.0,1.26910052]
[1765216612229,0.0004,90180.0,90179.0,1.24694459]
[1765216612426,0.0004,90180.0,90179.0,1.21735952]
[1765216612816,0.0004,90180.0,90179.0,1.16881352]
[1765216614030,0.0004,90180.0,90179.0,1.14665759]
[1765216614265,0.0004,90180.0,90179.0,1.16881352]
[1765216615693,0.0004,90180.0,90179.0,1.17281352]
[1765216616867,0.0004,90180.0,90179.0,1.18081352]
[1765216617074,0.00111737,90180.0,90179.0,1.18081352]
[1765216619429,0.00111737,90180.0,90179.0,1.18525264]
[1765216620244,0.0004,90190.0,90189.0,1.37795945]
[1765216620460,0.0004,90190.0,90189.0,1.41332293]
[1765216620665,0.0004,90190.0,90189.0,1.43836293]
[1765216621097,0.0004,90200.0,90199.0,0.62941086]
[1765216621299,0.0004,90200.0,90199.0,1.22759234]
[1765216621545,0.0004,90200.0,90199.0,1.25263234]
[1765216621878,0.0004,90200.0,90199.0,1.25707037]
[1765216622519,0.0004,90200.0,90199.0,1.25807037]
[1765216623097,0.0004,90200.0,90199.0,1.25907037]
[1765216623941,0.0004,90230.0,90209.0,2.62938628]
[1765216624092,0.0004,90230.0,90229.0,1.35745915]
[1765216624325,0.01107873,90263.0,90257.0,0.22158855]
[1765216624506,0.05057746,90259.0,90258.0,0.221587]
[1765216624799,0.01107959,90256.0,90248.0,0.22161076]
[1765216624966,0.01107947,90257.0,90252.0,0.01108008]
[1765216625185,0.01107959,90256.0,90253.0,0.22159928]
[1765216625472,0.00059939,90256.0,90254.0,0.22159682]
[1765216625683,0.00059939,90256.0,90255.0,0.04179]
[1765216625892,0.0004,90270.0,90267.0,0.01107824]
[1765216626090,0.00099939,90270.0,90267.0,0.23264092]
[1765216626265,0.22255772,90270.0,90262.0,0.02380885]
[1765216626466,0.01207726,90270.0,90266.0,0.01107836]
[1765216626651,0.00099939,90270.0,90264.0,0.01107861]
[1765216626854,0.00099939,90270.0,90265.0,0.01107849]
[1765216627059,0.00099939,90270.0,90259.0,0.22158388]
[1765216627060,0.01107935,90258.0,90254.0,0.01273]
[1765216627257,0.00059939,90258.0,90256.0,0.22159167]
[1765216627455,0.001,90256.0,90253.0,0.23267816]
[1765216627660,0.001,90256.0,90254.0,0.22159503]
[1765216627863,0.00059939,90258.0,90256.0,0.24374784]
[1765216628059,0.22155536,90271.0,90262.0,0.01107885]
[1765216628264,0.01070168,90270.0,90269.0,0.25138]
[1765216628457,0.01070168,90270.0,90260.0,0.90445905]
[1765216628458,0.01107836,90266.0,90260.0,0.01273]
[1765216628657,0.0004,90270.0,90268.0,0.22156042]
[1765216628979,0.01147787,90270.0,90266.0,0.22156736]
[1765216629186,0.0004,90270.0,90267.0,0.01107824]
[1765216629347,0.0004,90270.0,90267.0,0.23264147]
[1765216629545,0.0004,90270.0,90269.0,0.23865]
[1765216630054,0.0004,90270.0,90269.0,0.26286]
[1765216630182,0.0004,90270.0,90269.0,0.32699586]
[1765216630625,0.0024,90270.0,90269.0,0.32699586]
[1765216630808,0.0024,90270.0,90269.0,0.34915179]
[1765216631015,0.0004,90270.0,90269.0,0.32699586]
[1765216631214,0.00308709,90270.0,90269.0,0.34915179]
[1765216631387,0.00308709,90270.0,90269.0,1.49431286]
[1765216631588,0.00308709,90270.0,90269.0,1.51646879]
[1765216631792,0.00308709,90270.0,90269.0,1.10284579]
[1765216632027,0.00308709,90270.0,90269.0,0.8325718]
[1765216632226,0.00308709,90270.0,90269.0,0.8313228]
[1765216632658,0.00308709,90270.0,90269.0,0.7907378]
[1765216633060,0.00308709,90270.0,90269.0,0.7704178]
[1765216633645,0.00308709,90270.0,90269.0,0.7714178]
[1765216634189,0.00308709,90270.0,90269.0,0.7704178]
[1765216635282,0.00308709,90270.0,90269.0,0.73066187]
[1765216635437,0.00308709,90270.0,90269.0,0.74826187]
[1765216635651,0.00308709,90270.0,90269.0,0.83294079]
[1765216635978,0.0004,90280.0,90279.0,0.24369139]
[1765216636188,0.0004,90280.0,90279.0,0.64670725]
[1765216636396,0.01025732,90313.0,90290.0,0.2436644]
[1765216636566,0.01025732,90315.0,90290.0,0.27875727]
[1765216636750,0.0176,90316.0,90290.0,0.62744727]
[1765216637151,0.01107088,90327.0,90290.0,1.72945333]
[1765216637380,0.22143367,90321.0,90290.0,1.75160926]
[1765216637750,0.01107015,90333.0,90327.0,0.01107088]
[1765216637900,0.01107039,90331.0,90325.0,0.01107113]
[1765216638098,0.22141604,90328.0,90323.0,0.22142634]
[1765216638563,0.01106929,90340.0,90327.0,0.01588]
[1765216638767,0.01106953,90338.0,90334.0,0.01107002]
[1765216639057,0.01106966,90337.0,90332.0,0.23247425]
[1765216639259,0.01106978,90336.0,90331.0,0.01107039]
[1765216639492,0.23246081,90338.0,90334.0,0.23246952]
[1765216639697,0.23246948,90335.0,90332.0,0.01107027]
[1765216639929,0.22138991,90339.0,90334.0,0.22140058]
[1765216640144,0.01107051,90330.0,90326.0,0.022941]
[1765216640365,0.01107027,90332.0,90328.0,0.23248493]
[1765216640576,0.01107064,90329.0,90323.0,0.00161287]
[1765216640821,0.22142383,90325.0,90323.0,0.00161287]
[1765216641041,0.2324939,90326.0,90320.0,0.01187]
[1765216641042,0.22143244,90321.0,90320.0,0.01187]
[1765216641252,0.22144523,90316.0,90303.0,0.01107382]
[1765216641465,0.011071,90326.0,90301.0,0.02569]
[1765216641466,0.01107113,90325.0,90318.0,0.23250973]
[1765216641663,0.01107162,90321.0,90316.0,0.01107223]
[1765216641819,0.01107137,90323.0,90319.0,0.01107186]
[1765216642020,0.01107186,90319.0,90313.0,0.0110726]
[1765216642230,0.23250222,90322.0,90318.0,0.22143941]
[1765216642483,0.23250222,90322.0,90316.0,0.22144344]
[1765216642484,0.01107174,90320.0,90312.0,0.22145441]
[1765216642714,0.22143073,90322.0,90309.0,0.01107309]
[1765216642715,0.01107223,90316.0,90311.0,0.23252869]
[1765216642882,0.01107223,90316.0,90307.0,0.01107333]
[1765216643027,0.01107223,90316.0,90309.0,0.01107309]
[1765216643028,0.23252818,90312.0,90309.0,0.01107309]
[1765216643243,0.01107199,90318.0,90299.0,0.03401863]
[1765216643244,0.01107309,90309.0,90305.0,0.23254456]
[1765216643455,0.01107395,90302.0,90299.0,0.01187]
[1765216643665,0.22146763,90307.0,90301.0,0.02294407]
[1765216643881,0.01107346,90306.0,90300.0,0.22148247]
[1765216644083,0.22148281,90301.0,90297.0,0.23256513]
[1765216644287,0.0110726,90313.0,90307.0,0.22146573]
[1765216644485,0.0176,90317.0,90305.0,0.01107358]
[1765216644715,0.01107223,90316.0,90309.0,0.01107309]
[1765216644931,0.01107186,90319.0,90314.0,0.01107248]
[1765216645148,0.011071,90326.0,90317.0,0.01107211]
[1765216645370,0.01107088,90327.0,90312.0,0.22145383]
[1765216645371,0.01024817,90327.0,90325.0,0.22142195]
[1765216645577,0.01107113,90325.0,90322.0,0.01107149]
[1765216645776,0.02867051,90330.0,90323.0,0.01107137]
[1765216645983,0.22142114,90326.0,90323.0,0.01107137]
[1765216646224,0.01107088,90327.0,90324.0,0.01107125]
[1765216646425,0.01107125,90324.0,90320.0,0.01107174]
[1765216646673,0.23249667,90324.0,90321.0,0.01107162]
[1765216646882,0.01107211,90317.0,90313.0,0.00161287]
[1765216647110,0.23251557,90317.0,90313.0,0.00161287]
[1765216647325,0.22144264,90317.0,90312.0,0.01107272]
[1765216647525,0.23251212,90318.0,90315.0,0.22144715]
[1765216647731,0.01107186,90319.0,90308.0,0.01107321]
[1765216647732,0.0110726,90313.0,90308.0,0.01107321]
[1765216647939,0.01107235,90315.0,90310.0,0.01107297]
[1765216648146,0.01107272,90312.0,90308.0,0.01107321]
[1765216648361,0.23252542,90313.0,90309.0,0.01107309]
[1765216648570,0.01107272,90312.0,90309.0,0.01107309]
[1765216648781,0.01107358,90305.0,90302.0,0.323]
[1765216648990,0.23254011,90307.0,90303.0,0.01107382]
[1765216649198,0.22147943,90302.0,90298.0,0.01107444]
[1765216649402,0.01107382,90303.0,90299.0,0.01107431]
[1765216649620,0.01107358,90305.0,90299.0,0.01107431]
[1765216649621,0.23254844,90304.0,90300.0,0.23255801]
[1765216649824,0.22146449,90308.0,90294.0,0.01107493]
[1765216649825,0.01107444,90298.0,90294.0,0.01107493]
[1765216650033,1.34728113,90330.0,90292.0,0.01107517]
[1765216650034,0.01107456,90297.0,90292.0,0.01107517]
[1765216650239,0.23255682,90301.0,90295.0,0.01107481]
[1765216650505,0.0110737,90304.0,90295.0,0.01107481]
[1765216650506,0.002,90302.0,90299.0,0.01107431]
[1765216650704,0.01107431,90299.0,90294.0,0.01107493]
[1765216650945,0.002,90312.0,90280.0,0.01107665]
[1765216651146,0.22150601,90291.0,90285.0,0.22152072]
[1765216651356,0.01107517,90292.0,90285.0,0.22152072]
[1765216651357,0.22151155,90289.0,90286.0,0.22151715]
[1765216651561,0.01107689,90278.0,90275.0,0.01107726]
[1765216651769,0.01107701,90277.0,90273.0,0.0110775]
[1765216651984,0.23261172,90280.0,90277.0,0.01107701]
[1765216651985,0.23261046,90280.0,90277.0,0.01107701]
[1765216652200,0.23261278,90279.0,90275.0,0.23262151]
[1765216652425,0.23261278,90279.0,90276.0,0.22154172]
[1765216652640,0.23261015,90280.0,90277.0,0.23261704]
[1765216652845,0.22152894,90282.0,90279.0,0.01107677]
[1765216653082,0.23260534,90282.0,90279.0,0.23261192]
[1765216653272,0.0110764,90282.0,90279.0,0.23261192]
[1765216653480,0.2326049,90282.0,90279.0,0.23261192]
[1765216653691,0.00029838,90280.0,90279.0,0.01107677]
[1765216654126,0.00329838,90280.0,90279.0,0.01107677]
[1765216654345,0.00029838,90280.0,90279.0,0.01107677]
[1765216655364,0.22153588,90279.0,90277.0,0.01107701]
[1765216655502,0.02948511,90313.0,90295.0,0.01107481]
[1765216655703,0.33213264,90326.0,90294.0,0.01107493]
[1765216655704,0.01107419,90300.0,90294.0,0.01107493]
[1765216656095,0.04708511,90320.0,90280.0,0.01749287]
[1765216656096,0.01107542,90290.0,90280.0,0.01749287]
[1765216656246,0.01107481,90295.0,90290.0,0.01107542]
[1765216656446,0.0176,90306.0,90290.0,0.01107542]
[1765216656447,0.01031898,90294.0,90293.0,0.01107505]
[1765216656650,0.01031814,90302.0,90298.0,0.01107444]
[1765216656853,0.01307419,90300.0,90294.0,0.01107493]
[1765216657073,0.01107456,90297.0,90293.0,0.01107505]
[1765216657316,0.01107431,90299.0,90296.0,0.01107468]
[1765216657456,0.01107493,90294.0,90290.0,0.00161287]
[1765216657661,0.01032425,90293.0,90291.0,0.23257992]
[1765216657853,0.01307419,90300.0,90295.0,0.01107481]
[1765216658069,0.01032416,90299.0,90296.0,0.01107468]
[1765216658282,0.002,90300.0,90296.0,0.23256602]
[1765216658283,0.01032416,90298.0,90296.0,0.23256602]
[1765216658483,0.01032416,90297.0,90296.0,0.23256602]
[1765216658898,0.01032416,90297.0,90296.0,0.25005889]
[1765216659139,0.01032416,90297.0,90296.0,0.27574889]
[1765216659343,0.01032416,90297.0,90296.0,0.25005889]
[1765216659497,0.01032416,90297.0,90296.0,0.23417889]
[1765216659860,0.01032416,90297.0,90296.0,0.25005889]
[1765216659986,0.01132416,90297.0,90296.0,0.27574889]
[1765216660192,0.01132416,90297.0,90296.0,0.25005889]
[1765216661014,0.01183129,90297.0,90296.0,0.23417889]
[1765216664756,0.01183129,90297.0,90280.0,0.01107665]
[1765216664960,0.01107493,90294.0,90282.0,0.0110764]